fUSD/lending_fUSD_20240924
["ID","MTS","AMOUNT","RATE_DAILY","PERIOD"]
[339059908,1727185847575,-500.0,0.00012899,2]
[339059909,1727185847586,-500.0,0.00012899,2]
[339059910,1727185847595,-500.0,0.00012899,2]
[339059911,1727185847604,-500.0,0.00012899,2]
[339059912,1727185847613,-616.87,0.00012899,2]
[339059913,1727185847623,-500.0,0.00012899,2]
[339059914,1727185847631,-616.87,0.00012899,2]
[339059915,1727185847640,-387.82862703,0.00012899,2]
[339059916,1727185847650,-616.87,0.00012899,2]
[339059917,1727185847659,-616.87,0.00012899,2]
[339059918,1727185847668,-616.87,0.00012899,2]
[339059919,1727185847678,-616.87,0.00012899,2]
[339059920,1727185847687,-616.87,0.00012899,2]
[339059921,1727185847696,-616.87,0.00012899,2]
[339059923,1727185847706,-500.0,0.00012899,2]
[339059924,1727185847715,-616.87,0.00012899,2]
[339059925,1727185847725,-500.0,0.00012899,2]
[339059926,1727185847734,-616.87,0.00012899,2]
[339059927,1727185847744,-500.0,0.00012899,2]
[339059928,1727185847753,-616.87,0.00012899,2]
[339059929,1727185847763,-377.00143913,0.00012899,2]
[339059930,1727185847775,-616.87,0.00012899,2]
[339059931,1727185847785,-616.87,0.00012899,2]
[339059932,1727185847795,-616.87,0.00012899,2]
[339059933,1727185847804,-616.87,0.00012899,2]
[339059934,1727185847814,-616.87,0.00012899,2]
[339059936,1727185847824,-616.87,0.00012899,2]
[339059938,1727185847834,-616.87,0.00012899,2]
[339059940,1727185847843,-616.87,0.00012899,2]
[339059942,1727185847853,-616.93023308,0.00012899,2]
[339059944,1727185847863,-500.0,0.00012899,2]
[339059946,1727185847872,-500.0,0.00012899,2]
[339059948,1727185847881,-500.0,0.00012899,2]
[339059950,1727185847891,-500.0,0.00012899,2]
[339059952,1727185847900,-500.0,0.00012899,2]
[339059954,1727185847909,-500.0,0.00012899,2]
[339059956,1727185847919,-500.0,0.00012899,2]
[339059958,1727185847928,-500.0,0.00012899,2]
[339059960,1727185847938,-500.0,0.00012899,2]
[339059962,1727185847947,-500.0,0.00012899,2]
[339059964,1727185847957,-500.0,0.00012899,2]
[339059966,1727185847967,-423.17274089,0.00012899,2]
[339059968,1727185847977,-500.0,0.00012899,2]
[339059970,1727185847986,-256.66012575,0.00012899,2]
[339059972,1727185847995,-805.75,0.00012899,2]
[339059974,1727185848005,-805.75,0.00012899,2]
[339059976,1727185848014,-805.75,0.00012899,2]
[339059978,1727185848024,-805.75,0.00012899,2]
[339059979,1727185848034,-805.75,0.00012899,2]
[339059982,1727185848044,-805.75,0.00012899,2]
[339059983,1727185848053,-805.75,0.00012899,2]
[339059985,1727185848063,-805.75,0.00012899,2]
[339059987,1727185848072,-805.75,0.00012899,2]
[339059989,1727185848082,-805.75,0.00012899,2]
[339059991,1727185848092,-805.75,0.00012899,2]
[339059993,1727185848101,-805.75,0.00012899,2]
[339059995,1727185848111,-805.75,0.00012899,2]
[339059997,1727185848121,-805.75,0.00012899,2]
[339059999,1727185848130,-805.75,0.00012899,2]
[339060001,1727185848140,-805.75,0.00012899,2]
[339060003,1727185848149,-513.86,0.00012899,2]
[339060005,1727185848158,-805.75,0.00012899,2]
[339060007,1727185848168,-513.86,0.00012899,2]
[339060009,1727185848177,-805.75,0.00012899,2]
[339060011,1727185848186,-513.86,0.00012899,2]
[339060013,1727185848195,-805.75,0.00012899,2]
[339060015,1727185848204,-513.86,0.00012899,2]
[339060017,1727185848213,-805.81030157,0.00012899,2]
[339060019,1727185848223,-513.86,0.00012899,2]
[339060021,1727185848233,-513.86,0.00012899,2]
[339060023,1727185848241,-513.86,0.00012899,2]
[339060025,1727185848251,-513.86,0.00012899,2]
[339060027,1727185848261,-513.86,0.00012899,2]
[339060029,1727185848272,-513.86,0.00012899,2]
[339060031,1727185848281,-513.86,0.00012899,2]
[339060033,1727185848290,-513.86,0.00012899,2]
[339060035,1727185848300,-1365.74,0.00012899,2]
[339060037,1727185848309,-513.86,0.00012899,2]
[339060039,1727185848319,-1365.74,0.00012899,2]
[339060040,1727185848327,-513.86,0.00012899,2]
[339060042,1727185848337,-1365.74,0.00012899,2]
[339060044,1727185848348,-513.86,0.00012899,2]
[339060046,1727185848357,-513.86,0.00012899,2]
[339060048,1727185848366,-1365.74,0.00012899,2]
[339060050,1727185848376,-513.86,0.00012899,2]
[339060052,1727185848385,-1365.74,0.00012899,2]
[339060054,1727185848393,-1365.74,0.00012899,2]
[339060056,1727185848403,-513.86,0.00012899,2]
[339060057,1727185848412,-1365.74,0.00012899,2]
[339060059,1727185848421,-514.06890338,0.00012899,2]
[339060061,1727185848431,-1365.74,0.00012899,2]
[339060063,1727185848439,-1365.74,0.00012899,2]
[339060065,1727185848449,-1365.74,0.00012899,2]
[339060067,1727185848458,-1365.74,0.00012899,2]
[339060069,1727185848467,-1365.74,0.00012899,2]
[339060071,1727185848476,-1365.74,0.00012899,2]
[339060073,1727185848485,-1365.74,0.00012899,2]
[339060075,1727185848494,-1365.74,0.00012899,2]
[339060077,1727185848503,-1365.74,0.00012899,2]
[339060078,1727185848512,-1365.74,0.00012899,2]
[339060081,1727185848524,-1365.74,0.00012899,2]
[339060083,1727185848533,-1365.74,0.00012899,2]
[339060085,1727185848542,-583.57,0.00012899,2]
[339060087,1727185848552,-1365.76092935,0.00012899,2]
[339060089,1727185848561,-583.57,0.00012899,2]
[339060091,1727185848571,-583.57,0.00012899,2]
[339060093,1727185848581,-583.57,0.00012899,2]
[339060095,1727185848591,-583.57,0.00012899,2]
[339060097,1727185848602,-583.57,0.00012899,2]
[339060099,1727185848612,-583.57,0.00012899,2]
[339060101,1727185848621,-583.57,0.00012899,2]
[339060103,1727185848630,-583.57,0.00012899,2]
[339060105,1727185848640,-583.57,0.00012899,2]
[339060107,1727185848649,-583.57,0.00012899,2]
[339060108,1727185848658,-583.57,0.00012899,2]
[339060111,1727185848668,-583.57,0.00012899,2]
[339060112,1727185848678,-583.57,0.00012899,2]
[339060115,1727185848688,-583.57,0.00012899,2]
[339060117,1727185848697,-583.57,0.00012899,2]
[339060119,1727185848707,-583.57,0.00012899,2]
[339060120,1727185848716,-583.57,0.00012899,2]
[339060122,1727185848726,-583.74282164,0.00012899,2]
[339060124,1727185848736,-500.0,0.00012899,2]
[339060126,1727185848745,-500.0,0.00012899,2]
[339060128,1727185848755,-500.0,0.00012899,2]
[339060130,1727185848765,-500.0,0.00012899,2]
[339060132,1727185848775,-500.0,0.00012899,2]
[339060134,1727185848785,-500.0,0.00012899,2]
[339060136,1727185848795,-500.0,0.00012899,2]
[339060138,1727185848805,-500.0,0.00012899,2]
[339060141,1727185848815,-500.0,0.00012899,2]
[339060143,1727185848825,-500.0,0.00012899,2]
[339060145,1727185848836,-500.0,0.00012899,2]
[339060147,1727185848846,-500.0,0.00012899,2]
[339060149,1727185848856,-500.0,0.00012899,2]
[339060151,1727185848866,-500.0,0.00012899,2]
[339060153,1727185848876,-500.0,0.00012899,2]
[339060155,1727185848886,-500.0,0.00012899,2]
[339060157,1727185848897,-500.0,0.00012899,2]
[339060159,1727185848906,-500.0,0.00012899,2]
[339060161,1727185848916,-606.61603598,0.00012899,2]
[339060163,1727185848925,-46592.18231378,0.00012899,3]
[339060165,1727185848935,-730.93,0.00012899,2]
[339060167,1727185848945,-730.93,0.00012899,2]
[339060169,1727185848955,-730.93,0.00012899,2]
[339060171,1727185848965,-730.93,0.00012899,2]
[339060173,1727185848975,-730.93,0.00012899,2]
[339060175,1727185848985,-730.93,0.00012899,2]
[339060177,1727185848994,-730.93,0.00012899,2]
[339060179,1727185849004,-730.93,0.00012899,2]
[339060181,1727185849014,-730.93,0.00012899,2]
[339060183,1727185849026,-730.93,0.00012899,2]
[339060185,1727185849035,-730.93,0.00012899,2]
[339060186,1727185849045,-730.93,0.00012899,2]
[339060188,1727185849057,-730.93,0.00012899,2]
[339060190,1727185849068,-730.93,0.00012899,2]
[339060193,1727185849079,-730.93,0.00012899,2]
[339060195,1727185849090,-730.93,0.00012899,2]
[339060197,1727185849101,-730.93,0.00012899,2]
[339060199,1727185849111,-730.93,0.00012899,2]
[339060201,1727185849122,-731.14068763,0.00012899,2]
[339060203,1727185849132,-596.33,0.00012899,2]
[339060205,1727185849143,-547.46692367,0.00012899,2]
[339060207,1727185849152,-500.0,0.00012899,2]
[339060209,1727185849163,-500.0,0.00012899,2]
[339060211,1727185849173,-500.0,0.00012899,2]
[339060213,1727185849184,-500.0,0.00012899,2]
[339060215,1727185849193,-500.0,0.00012899,2]
[339060217,1727185849203,-500.0,0.00012899,2]
[339060219,1727185849213,-300.0602711,0.00012899,2]
[339060221,1727185849222,-500.0,0.00012899,2]
[339060223,1727185849232,-500.0,0.00012899,2]
[339060225,1727185849242,-198.6874575,0.00012899,2]
[339060227,1727185849252,-500.0,0.00012899,2]
[339060229,1727185849261,-500.0,0.00012899,2]
[339060232,1727185849274,-500.0,0.00012899,2]
[339060234,1727185849284,-500.0,0.00012899,2]
[339060236,1727185849294,-500.0,0.00012899,2]
[339060238,1727185849304,-462.28229947,0.00012899,2]
[339060240,1727185849313,-500.0,0.00012899,2]
[339060242,1727185849323,-387.07062496,0.00012899,2]
[339060244,1727185849333,-709.88,0.00012899,2]
[339060246,1727185849345,-709.88,0.00012899,2]
[339060248,1727185849357,-709.88,0.00012899,2]
[339060250,1727185849366,-709.88,0.00012899,2]
[339060252,1727185849377,-633.61,0.000129,2]
[339060254,1727185849388,-7523447.92439667,0.000129,2]
[339060277,1727185849605,-319.31033445,0.000129,2]
[339060278,1727185849634,305.7,0.00010959,2]
[339060293,1727185849836,-500.0,0.00012876,2]
[339060295,1727185849846,-550.99,0.00012876,2]
[339060297,1727185849856,-500.0,0.00012876,2]
[339060299,1727185849866,-500.0,0.00012876,2]
[339060301,1727185849876,-550.99,0.00012876,2]
[339060303,1727185849886,-550.99,0.00012897,2]
[339060305,1727185849896,-500.0,0.00012898,2]
[339060307,1727185849906,-500.0,0.00012898,2]
[339060309,1727185849916,-550.99,0.00012898,2]
[339060311,1727185849926,-709.88,0.00012899,2]
[339060313,1727185849936,-709.88,0.00012899,2]
[339060315,1727185849945,-709.88,0.00012899,2]
[339060317,1727185849955,-709.88,0.00012899,2]
[339060319,1727185849965,-709.88,0.00012899,2]
[339060321,1727185849975,-500.0,0.00012899,2]
[339060324,1727185849984,-709.88,0.00012899,2]
[339060326,1727185849994,-500.0,0.00012899,2]
[339060327,1727185850004,-550.99,0.00012899,2]
[339060330,1727185850014,-709.88,0.00012899,2]
[339060332,1727185850026,-550.99,0.00012899,2]
[339060334,1727185850036,-500.0,0.00012899,2]
[339060335,1727185850045,-96170.28383542,0.000129,2]
[339060339,1727185850071,-709.88,0.00012899,2]
[339060341,1727185850080,-500.0,0.00012899,2]
[339060343,1727185850090,-8790.12,0.000129,2]
[339062732,1727185876206,78104.561648,0.0001,2]
[339063404,1727185909943,565.61,9.98e-05,2]
[339063406,1727186413370,36777.6,0.00021,60]
[339063407,1727186419772,169.28,0.00010959,2]
[339063408,1727186439440,1050.0,0.00011,2]
[339063409,1727186481341,556.67,9.822e-05,2]
[339063430,1727186990176,152.43,0.00010959,2]
[339063431,1727187021494,549.53,9.554e-05,2]
[339063455,1727187031582,-9512.8142,0.00011479,2]
[339063457,1727187031594,-4520.6158,0.00011479,2]
[339063458,1727187031604,-200.0,0.00011534,2]
[339063459,1727187031613,-250.73,0.00011548,2]
[339063460,1727187031622,-150.0,0.00011589,2]
[339063461,1727187031632,-150.0,0.00011589,2]
[339063462,1727187031641,-150.0,0.00011589,2]
[339063463,1727187031650,-194.37,0.00011675,2]
[339063464,1727187031659,-224.95,0.00011702,2]
[339063465,1727187031668,-250.0,0.00011713,2]
[339063466,1727187031679,-162.6,0.00011727,2]
[339063467,1727187031688,-1000.0,0.00011762,2]
[339063468,1727187031697,-250.0,0.00011791,2]
[339063469,1727187031707,-999.99,0.00011791,2]
[339063470,1727187031716,-499.99,0.00011791,2]
[339063471,1727187031726,-5996.7,0.0001181,2]
[339063472,1727187031736,-549.53,0.00011818,2]
[339063473,1727187031745,-3056.0212,0.00011986,2]
[339063474,1727187031755,-13645.35619698,0.00012076,2]
[339063475,1727187031764,-73625.85340617,0.00012086,2]
[339063476,1727187031777,-422.91,0.000121,2]
[339063477,1727187031786,-150.0,0.000121,2]
[339063478,1727187031795,-1506.5,0.000121,2]
[339063479,1727187031805,-150.0,0.000121,2]
[339063480,1727187031815,-422.91,0.000121,2]
[339063481,1727187031824,-813.19,0.000121,2]
[339063482,1727187031834,-163.14,0.000121,2]
[339063483,1727187031843,-301.99,0.000121,2]
[339063484,1727187031853,-422.91,0.000121,2]
[339063485,1727187031862,-301.96,0.000121,2]
[339063486,1727187031871,-422.91,0.000121,2]
[339063487,1727187031881,-422.91,0.000121,2]
[339063488,1727187031890,-150.863155,0.00012377,2]
[339063489,1727187031900,-4674.815454,0.00012377,2]
[339063490,1727187031909,-3832.127545,0.00012377,2]
[339063491,1727187031919,-152.632677,0.00012377,2]
[339063492,1727187031929,-172.681732,0.00012377,2]
[339063493,1727187031946,-4674.815454,0.00012377,2]
[339063494,1727187031955,-3832.127546,0.00012377,2]
[339063495,1727187031964,-152.632678,0.00012377,2]
[339063497,1727187031973,-205.351247,0.00012377,2]
[339063499,1727187031983,-184.073224,0.00012377,2]
[339063501,1727187031992,-428.31,0.000124,2]
[339063504,1727187032001,-150.0,0.000124,2]
[339063507,1727187032011,-422.91,0.000124,2]
[339063510,1727187032020,-753.64,0.000124,2]
[339063513,1727187032030,-422.91,0.000124,2]
[339063516,1727187032039,-422.91,0.000124,2]
[339063519,1727187032048,-426.76,0.000124,2]
[339063522,1727187032057,-583.41,0.000124,2]
[339063523,1727187032067,-305.4,0.000124,2]
[339063524,1727187032076,-150.0,0.000124,2]
[339063525,1727187032086,-422.91,0.000124,2]
[339063526,1727187032095,-195.65,0.00012445,2]
[339063527,1727187032105,-422.91,0.000125,2]
[339063528,1727187032115,-422.91,0.000125,2]
[339063529,1727187032125,-422.91,0.000125,2]
[339063530,1727187032134,-422.91,0.000125,2]
[339063531,1727187032143,-422.91,0.000125,2]
[339063532,1727187032153,-422.91,0.000125,2]
[339063533,1727187032162,-150.0,0.000125,2]
[339063534,1727187032171,-4674.815454,0.00012532,2]
[339063535,1727187032183,-3832.127545,0.00012532,2]
[339063536,1727187032193,-152.632677,0.00012532,2]
[339063537,1727187032203,-4674.815454,0.00012532,2]
[339063538,1727187032212,-3832.127546,0.00012532,2]
[339063539,1727187032222,-152.632678,0.00012532,2]
[339063540,1727187032231,-2500.0,0.0001258,2]
[339063541,1727187032241,-662.7731,0.00012581,2]
[339063542,1727187032251,-172.681732,0.00012583,2]
[339063543,1727187032261,-422.91,0.000126,2]
[339063544,1727187032270,-422.91,0.000126,2]
[339063545,1727187032279,-422.91,0.000126,2]
[339063546,1727187032289,-150.0,0.000126,2]
[339063547,1727187032298,-422.91,0.000126,2]
[339063548,1727187032307,-422.91,0.000126,2]
[339063549,1727187032317,-150.0,0.000126,2]
[339063550,1727187032326,-230.9,0.000126,2]
[339063551,1727187032335,-1119.08438138,0.00012642,2]
[339063552,1727187032345,-16982.0112,0.0001268,2]
[339063553,1727187032354,-4674.815454,0.00012686,2]
[339063554,1727187032363,-3832.127545,0.00012686,2]
[339063555,1727187032372,-152.632677,0.00012686,2]
[339063556,1727187032382,-4674.815454,0.00012686,2]
[339063557,1727187032391,-3832.127546,0.00012686,2]
[339063558,1727187032401,-152.632678,0.00012686,2]
[339063559,1727187032410,-422.91,0.000127,2]
[339063560,1727187032419,-422.91,0.000127,2]
[339063561,1727187032430,-422.91,0.000127,2]
[339063562,1727187032439,-422.91,0.000127,2]
[339063563,1727187032448,-422.91,0.000127,2]
[339063564,1727187032457,-422.91,0.000127,2]
[339063565,1727187032467,-422.91,0.000127,2]
[339063566,1727187032476,-1913.0,0.00012707,2]
[339063567,1727187032485,-3347.0,0.00012707,2]
[339063568,1727187032495,-252.647,0.00012707,2]
[339063569,1727187032504,-806.0,0.00012707,2]
[339063570,1727187032513,-247.291,0.00012711,2]
[339063571,1727187032522,-13492.0,0.00012711,2]
[339063572,1727187032531,-5869.0,0.00012711,2]
[339063573,1727187032540,-1147.0,0.00012711,2]
[339063574,1727187032550,-150.0,0.00012718,2]
[339063575,1727187032560,-150.0,0.0001273,2]
[339063576,1727187032570,-150.0,0.00012733,2]
[339063577,1727187032579,-150.0,0.00012762,2]
[339063578,1727187032588,-150.0,0.00012763,2]
[339063579,1727187032598,-150.0,0.00012764,2]
[339063580,1727187032609,-150.0,0.00012772,2]
[339063581,1727187032618,-150.0,0.00012778,2]
[339063582,1727187032627,-172.681732,0.00012789,2]
[339063583,1727187032828,-5052.178,0.00012798,2]
[339063584,1727187032841,-164.31038801,0.00012799,2]
[339063585,1727187032851,-164.31038801,0.000128,2]
[339063586,1727187032861,-9993.9278,0.000128,2]
[339063587,1727187032871,-2302.7651,0.000128,2]
[339063588,1727187032880,-422.91,0.000128,2]
[339063589,1727187032889,-484.84284909,0.000128,2]
[339063590,1727187032898,-8030.0,0.000128,2]
[339063591,1727187032908,-214.36132895,0.000128,2]
[339063592,1727187032917,-214.86,0.000128,2]
[339063593,1727187032929,-164.31038801,0.000128,2]
[339063594,1727187032939,-137275.88345148,0.00012805,2]
[339063595,1727187032948,-300.50914619,0.00012805,2]
[339063596,1727187032958,-150.0,0.00012809,2]
[339063597,1727187032967,-150.0,0.00012815,2]
[339063598,1727187032976,-150.0,0.00012816,2]
[339063599,1727187032985,-150.0,0.00012832,2]
[339063600,1727187032994,-154.00400739,0.00012839,2]
[339063601,1727187033003,-4674.815454,0.00012841,2]
[339063602,1727187033012,-3832.127545,0.00012841,2]
[339063603,1727187033021,-152.632677,0.00012841,2]
[339063604,1727187033032,-4674.815454,0.00012841,2]
[339063605,1727187033041,-3832.127546,0.00012841,2]
[339063606,1727187033050,-152.632678,0.00012841,2]
[339063607,1727187033060,-150.0,0.00012841,2]
[339063608,1727187033069,-493.398,0.00012851,2]
[339063609,1727187033079,-173.656,0.00012851,2]
[339063610,1727187033088,-150.0,0.00012851,2]
[339063611,1727187033098,-150.0,0.00012867,2]
[339063612,1727187033107,-529.97694791,0.00012873,2]
[339063613,1727187033117,-501.19311982,0.00012876,2]
[339063614,1727187033126,-501.18158336,0.00012876,2]
[339063615,1727187033136,-164.7572763,0.00012876,2]
[339063616,1727187033146,-365.27076316,0.00012876,2]
[339063617,1727187033338,-135.76553572,0.00012876,2]
[339063618,1727187033349,-486.0059336,0.00012876,2]
[339063619,1727187033361,-13.9940664,0.00012876,2]
[339063620,1727187033370,-500.0,0.00012876,2]
[339063621,1727187033380,-500.0,0.00012876,2]
[339063622,1727187033390,-85.97837204,0.00012876,2]
[339063623,1727187033401,-414.02162796,0.00012876,2]
[339063624,1727187033410,-76.90294249,0.00012876,2]
[339063625,1727187033422,-423.09705751,0.00012876,2]
[339063626,1727187033435,-500.0,0.00012876,2]
[339063627,1727187033444,-500.0,0.00012876,2]
[339063628,1727187033453,-500.0,0.00012876,2]
[339063629,1727187033463,-220.87261154,0.00012876,2]
[339063630,1727187033473,-500.0,0.00012876,2]
[339063631,1727187033483,-36.41869217,0.00012876,2]
[339063632,1727187033495,-280.70085928,0.00012876,2]
[339063633,1727187033505,-117.56912068,0.00012876,2]
[339063634,1727187033516,-270.54903608,0.00012876,2]
[339063635,1727187033533,-111.88184324,0.00012876,2]
[339063636,1727187033542,-500.0,0.00012876,2]
[339063637,1727187033552,-500.0,0.00012876,2]
[339063638,1727187033561,-500.0,0.00012876,2]
[339063639,1727187033570,-500.0,0.00012876,2]
[339063640,1727187033580,-500.0,0.00012876,2]
[339063641,1727187033590,-500.0,0.00012876,2]
[339063642,1727187033599,-500.0,0.00012876,2]
[339063643,1727187033609,-500.0,0.00012876,2]
[339063644,1727187033619,-500.0,0.00012876,2]
[339063645,1727187033629,-500.0,0.00012876,2]
[339063646,1727187033639,-500.0,0.00012876,2]
[339063647,1727187033648,-500.0,0.00012876,2]
[339063648,1727187033658,-500.0,0.00012876,2]
[339063649,1727187033668,-500.0,0.00012876,2]
[339063650,1727187033678,-500.0,0.00012876,2]
[339063651,1727187033688,-500.0,0.00012876,2]
[339063652,1727187033698,-500.0,0.00012876,2]
[339063653,1727187033707,-500.0,0.00012876,2]
[339063654,1727187033717,-500.0,0.00012876,2]
[339063655,1727187033726,-240.97224676,0.00012876,2]
[339063656,1727187033739,-259.02775324,0.00012876,2]
[339063657,1727187033749,-172.12260167,0.00012876,2]
[339063658,1727187033761,-327.87739833,0.00012876,2]
[339063659,1727187033770,-500.0,0.00012876,2]
[339063660,1727187033784,-500.0,0.00012876,2]
[339063661,1727187033794,-500.0,0.00012876,2]
[339063662,1727187033804,-500.0,0.00012876,2]
[339063663,1727187033813,-500.0,0.00012876,2]
[339063664,1727187033823,-500.0,0.00012876,2]
[339063665,1727187033832,-500.0,0.00012876,2]
[339063666,1727187033842,-500.0,0.00012876,2]
[339063667,1727187033852,-500.0,0.00012876,2]
[339063668,1727187033863,-500.0,0.00012876,2]
[339063669,1727187033872,-500.0,0.00012876,2]
[339063670,1727187033882,-171.52449624,0.00012876,2]
[339063671,1727187033892,-442.65255054,0.00012876,2]
[339063672,1727187033902,-822.26,0.00012876,2]
[339063673,1727187033911,-822.26,0.00012876,2]
[339063674,1727187033920,-500.0,0.00012876,7]
[339063675,1727187033932,-500.0,0.00012876,7]
[339063676,1727187033942,-500.0,0.00012876,2]
[339063677,1727187033951,-500.0,0.00012876,2]
[339063678,1727187033961,-500.0,0.00012876,2]
[339063679,1727187033970,-500.0,0.00012876,2]
[339063680,1727187033979,-500.0,0.00012876,2]
[339063681,1727187033989,-500.0,0.00012876,2]
[339063682,1727187033998,-500.0,0.00012876,2]
[339063683,1727187034008,-500.0,0.00012876,2]
[339063684,1727187034017,-500.0,0.00012876,2]
[339063685,1727187034026,-500.0,0.00012876,2]
[339063686,1727187034036,-500.0,0.00012876,2]
[339063687,1727187034045,-500.0,0.00012876,2]
[339063688,1727187034055,-500.0,0.00012876,2]
[339063689,1727187034064,-500.0,0.00012876,2]
[339063690,1727187034073,-500.0,0.00012876,2]
[339063691,1727187034082,-500.0,0.00012876,2]
[339063692,1727187034092,-500.0,0.00012876,2]
[339063693,1727187034101,-500.0,0.00012876,2]
[339063694,1727187034110,-237.0624636,0.00012876,2]
[339063695,1727187034131,-262.9375364,0.00012876,2]
[339063696,1727187034140,-500.0,0.00012876,2]
[339063697,1727187034150,-500.0,0.00012876,2]
[339063698,1727187034159,-500.0,0.00012876,2]
[339063699,1727187034169,-500.0,0.00012876,2]
[339063700,1727187034181,-535.33,0.00012876,2]
[339063701,1727187034191,-535.33,0.00012876,2]
[339063702,1727187034200,-316.40246335,0.00012876,2]
[339063703,1727187034212,-183.59753665,0.00012876,2]
[339063704,1727187034222,-194.65855559,0.00012876,2]
[339063705,1727187034235,-305.34144441,0.00012876,2]
[339063706,1727187034245,-124.53280749,0.00012876,2]
[339063709,1727187037732,-1081.0,0.00012711,2]
[339063710,1727187037742,-329.50705356,0.00012776,2]
[339063711,1727187037752,-375.46719251,0.00012876,2]
[339063712,1727187037761,-500.0,0.00012876,2]
[339063713,1727187037770,-500.0,0.00012876,2]
[339063714,1727187037988,-500.0,0.00012876,2]
[339063715,1727187037998,-500.0,0.00012876,2]
[339063716,1727187038007,-273.35095239,0.00012876,2]
[339063717,1727187038019,-226.64904761,0.00012876,2]
[339063718,1727187038028,-317.96857135,0.00012876,2]
[339063719,1727187038039,-182.03142865,0.00012876,2]
[339063720,1727187038049,-228.79664166,0.00012876,2]
[339063721,1727187038060,-445.42957939,0.00012876,2]
[339063722,1727187038071,-29.73377895,0.00012876,2]
[339063723,1727187038081,-703.96,0.00012876,2]
[339063724,1727187038090,-819.62,0.00012876,2]
[339063725,1727187038100,-819.62,0.00012876,2]
[339063726,1727187038109,-819.62,0.00012876,2]
[339063727,1727187038119,-1135.68,0.00012876,2]
[339063728,1727187038128,-1135.68,0.00012876,2]
[339063729,1727187038137,-500.0,0.00012876,2]
[339063730,1727187038147,-500.0,0.00012876,2]
[339063732,1727187038156,-500.0,0.00012876,2]
[339063733,1727187038165,-500.0,0.00012876,2]
[339063734,1727187038175,-500.0,0.00012876,2]
[339063735,1727187038187,-500.0,0.00012876,2]
[339063736,1727187038196,-500.0,0.00012876,2]
[339063737,1727187038205,-500.0,0.00012876,2]
[339063738,1727187038215,-500.0,0.00012876,2]
[339063739,1727187038224,-500.0,0.00012876,2]
[339063740,1727187038234,-500.0,0.00012876,2]
[339063741,1727187038243,-500.0,0.00012876,2]
[339063742,1727187038253,-500.0,0.00012876,2]
[339063743,1727187038263,-500.0,0.00012876,2]
[339063744,1727187038272,-500.0,0.00012876,2]
[339063745,1727187038281,-500.0,0.00012876,2]
[339063746,1727187038291,-500.0,0.00012876,2]
[339063747,1727187038301,-192.42987699,0.00012876,2]
[339063748,1727187038310,-500.0,0.00012876,2]
[339063749,1727187038319,-500.0,0.00012876,2]
[339063750,1727187038328,-500.0,0.00012876,2]
[339063751,1727187038337,-500.0,0.00012876,2]
[339063752,1727187038347,-500.0,0.00012876,2]
[339063753,1727187038356,-500.0,0.00012876,2]